[Event "Polish Youth G18 Championship 2023"]
[Site "Jastrzebia Gora"]
[Date "2023.03.17"]
[Round "7.14"]
[White "Trybus, Dominika"]
[Black "Gornisiewicz, Natalia"]
[Result "1/2-1/2"]
[ECO "C10"]
[WhiteElo "1543"]
[BlackElo "1287"]
[Annotator "NA RC COMBH"]
[PlyCount "60"]
[EventDate "2023.03.11"]
[EventType "swiss"]
[EventCountry "POL"]
[SourceTitle "playchess.com"]
[Source "ChessBase"]
[SourceQuality "1"]
[TimeControl "40/5400+30:1800+30"]

1. e4 {[%emt 0:00:01]} e6 {[%emt 0:00:09]} 2. d4 {[%emt 0:00:05]} d5 {[%emt 0:00:05]} 3. Nd2 {[%emt 0:00:06]} dxe4 {[%emt 0:00:08]} 4. Nxe4 {[%emt 0:00:08]} Nd7 {[%emt 0:00:06]} 5. Bd3 {[%emt 0:05:46]} Ngf6 {[%emt 0:00:20]} 6. Nf3 {[%emt 0:05:21]} Nxe4 {[%emt 0:00:46]} 7. Bxe4 {[%emt 0:00:08]} Nf6 {[%emt 0:00:16]} 8. Bd3 {[%emt 0:00:06]} Be7 {[%emt 0:04:11]} 9. O-O {[%emt 0:00:10]} O-O {[%emt 0:00:08]} 10. Qe2 {[%emt 0:03:21]} b6 {[%emt 0:10:01]} 11. Bg5 {[%emt 0:02:37]} Bb7 {[%emt 0:00:27]} 12. Rad1 {[%emt 0:00:35]} h6 {[%emt 0:00:58]} 13. Bh4 {[%emt 0:01:09]} Nh5 {[%emt 0:05:56]} 14. Bg3 {[%emt 0:05:55]} Nxg3 {[%emt 0:02:28]} 15. fxg3 {[%emt 0:00:07]} Bxf3 {[%emt 0:00:20]} 16. Rxf3 {[%emt 0:00:54]} Qxd4+ {[%emt 0:00:09]} 17. Kh1 {[%emt 0:00:16]} Qxb2 {[%emt 0:03:31]} 18. Qe4 {[%emt 0:00:41]} g6 {[%emt 0:00:28]} 19. Rxf7 {[%emt 0:00:59]} Rxf7 {[%emt 0:01:06]} 20. Qxa8+ {[%emt 0:00:06]} Kg7 {[%emt 0:00:59]} 21. Qxa7 {[%emt 0:08:48]} Bc5 {[%emt 0:03:01]} 22. Qa4 {[%emt 0:07:39]} Qe5 {[%emt 0:03:40]} 23. Qg4 {[%emt 0:04:01]} Qf6 {[%emt 0:04:01]} 24. Bc4 {[%emt 0:06:15]} Re7 {[%emt 0:04:22]} 25. Rf1 {[%emt 0:03:41]} Qd4 {[%emt 0:04:16]} 26. Bxe6 {[%emt 0:10:12]} Qxg4 {[%emt 0:00:07]} 27. Bxg4 {[%emt 0:00:08]} Re4 {[%emt 0:00:48]} 28. h3 {[%emt 0:03:40]} Rc4 {[%emt 0:02:59]} 29. Be6 {[%emt 0:06:40]} Rxc2 {[%emt 0:00:29]} 30. Bb3 {[%emt 0:00:50]} Rc3 {[%emt 0:01:32]} 1/2-1/2

[Event "Polish Youth G18 Championship 2023"]
[Site "Jastrzebia Gora"]
[Date "2023.03.17"]
[Round "7.15"]
[White "Szczotka, Matylda"]
[Black "Czerwinska, Oliwia"]
[Result "1-0"]
[ECO "C60"]
[WhiteElo "1451"]
[BlackElo "1369"]
[Annotator "NA RC COMBH"]
[PlyCount "81"]
[EventDate "2023.03.11"]
[EventType "swiss"]
[EventCountry "POL"]
[SourceTitle "playchess.com"]
[Source "ChessBase"]
[SourceQuality "1"]
[TimeControl "40/5400+30:1800+30"]

1. e4 {[%emt 0:00:02]} e5 {[%emt 0:00:15]} 2. Nf3 {[%emt 0:00:06]} Nc6 {[%emt 0:00:07]} 3. Bb5 {[%emt 0:00:05]} Nge7 {[%emt 0:00:11]} 4. d4 {[%emt 0:00:12]} exd4 {[%emt 0:00:13]} 5. Nxd4 {[%emt 0:00:05]} Nxd4 {[%emt 0:00:15]} 6. Qxd4 {[%emt 0:00:02]} Nc6 {[%emt 0:00:11]} 7. Qe3 {[%emt 0:00:08]} Be7 {[%emt 0:01:06]} 8. Nc3 {[%emt 0:00:56]} d6 {[%emt 0:01:17]} 9. Bd2 {[%emt 0:01:16]} a6 {[%emt 0:02:43]} 10. Be2 {[%emt 0:02:41]} O-O {[%emt 0:04:37]} 11. O-O-O {[%emt 0:04:16]} b5 {[%emt 0:02:56]} 12. Nd5 {[%emt 0:08:27]} Bf6 {[%emt 0:06:53]} 13. Nxf6+ {[%emt 0:20:39]} Qxf6 {[%emt 0:00:55]} 14. Bc3 {[%emt 0:00:27]} Qg6 {[%emt 0:04:34]} 15. f4 {[%emt 0:06:36]} f5 {[%emt 0:02:32]} 16. g4 {[%emt 0:10:55]} Qe8 {[%emt 0:20:39]} 17. gxf5 {[%emt 0:05:40]} Bxf5 {[%emt 0:03:23]} 18. Qg3 {[%emt 0:06:03]} Rf7 {[%emt 0:07:47]} 19. Bh5 {[%emt 0:18:39]} Bg6 {[%emt 0:01:03]} 20. Bxg6 {[%emt 0:00:33]} hxg6 {[%emt 0:00:07]} 21. Qxg6 {[%emt 0:00:40]} b4 {[%emt 0:01:24]} 22. Bd2 {[%emt 0:00:20]} Re7 {[%emt 0:01:37]} 23. Qg2 {[%emt 0:04:06]} Rxe4 {[%emt 0:01:33]} 24. Rhg1 {[%emt 0:01:06]} Re7 {[%emt 0:00:18]} 25. f5 {[%emt 0:00:46]} Nd4 {[%emt 0:08:03]} 26. Qd5+ {[%emt 0:02:44]} Ne6 {[%emt 0:01:07]} 27. fxe6 {[%emt 0:01:56]} c6 {[%emt 0:03:54]} 28. Qg5 {[%emt 0:00:59]} Raa7 {[%emt 0:00:35]} 29. Bxb4 {[%emt 0:01:19]} Rxe6 {[%emt 0:02:32]} 30. Rxd6 {[%emt 0:01:07]} Rxd6 {[%emt 0:02:22]} 31. Bxd6 {[%emt 0:00:08]} Qf7 {[%emt 0:00:54]} 32. b3 {[%emt 0:02:02]} Rd7 {[%emt 0:00:59]} 33. Ba3 {[%emt 0:00:49]} a5 {[%emt 0:04:01]} 34. Bb2 {[%emt 0:00:25]} a4 {[%emt 0:01:13]} 35. Qxg7+ {[%emt 0:00:39]} Qxg7 {[%emt 0:00:11]} 36. Rxg7+ {[%emt 0:00:03]} Rxg7 {[%emt 0:00:10]} 37. Bxg7 {[%emt 0:00:04]} axb3 {[%emt 0:00:24]} 38. cxb3 {[%emt 0:01:00]} Kxg7 {[%emt 0:00:10]} 39. a4 {[%emt 0:00:05]} Kf6 {[%emt 0:00:14]} 40. a5 {[%emt 0:00:00]} Ke7 {[%emt 0:00:00]} 41. a6 {[%emt 0:00:16]} 1-0

[Event "Polish Youth G18 Championship 2023"]
[Site "Jastrzebia Gora"]
[Date "2023.03.17"]
[Round "7.16"]
[White "Kaznowska, Kinga"]
[Black "Pietrzak, Emilia"]
[Result "1/2-1/2"]
[ECO "B30"]
[WhiteElo "1352"]
[BlackElo "1424"]
[Annotator "NA RC COMBH"]
[PlyCount "101"]
[EventDate "2023.03.11"]
[EventType "swiss"]
[EventCountry "POL"]
[SourceTitle "playchess.com"]
[Source "ChessBase"]
[SourceQuality "1"]
[TimeControl "40/5400+30:1800+30"]

1. e4 {[%emt 0:00:03]} c5 {[%emt 0:00:04]} 2. Nf3 {[%emt 0:00:03]} Nc6 {[%emt 0:00:07]} 3. c3 {[%emt 0:00:13]} d5 {[%emt 0:00:37]} 4. exd5 {[%emt 0:00:30]} Qxd5 {[%emt 0:00:23]} 5. d4 {[%emt 0:00:15]} e6 {[%emt 0:03:25]} 6. Bb5 {[%emt 0:00:38]} Bd7 {[%emt 0:07:10]} 7. Be3 {[%emt 0:02:03]} cxd4 {[%emt 0:02:45]} 8. Bxc6 {[%emt 0:00:56]} Bxc6 {[%emt 0:01:39]} 9. Qxd4 {[%emt 0:00:29]} Nf6 {[%emt 0:02:24]} 10. Nbd2 {[%emt 0:02:14]} Be7 {[%emt 0:04:15]} 11. Qxd5 {[%emt 0:02:53]} Nxd5 {[%emt 0:00:48]} 12. Bd4 {[%emt 0:03:13]} f6 {[%emt 0:04:20]} 13. c4 {[%emt 0:03:22]} Nf4 {[%emt 0:06:40]} 14. O-O {[%emt 0:00:36]} e5 {[%emt 0:03:26]} 15. Be3 {[%emt 0:01:55]} Nd3 {[%emt 0:01:20]} 16. b3 {[%emt 0:08:42]} O-O {[%emt 0:03:09]} 17. Ne1 {[%emt 0:06:06]} Rfd8 {[%emt 0:04:59]} 18. Nxd3 {[%emt 0:01:01]} Rxd3 {[%emt 0:00:01]} 19. Nf3 {[%emt 0:03:24]} b6 {[%emt 0:04:45]} 20. Rfd1 {[%emt 0:03:47]} Rad8 {[%emt 0:00:32]} 21. Rxd3 {[%emt 0:00:18]} Rxd3 {[%emt 0:00:05]} 22. Ne1 {[%emt 0:00:08]} Rd8 {[%emt 0:02:06]} 23. Kf1 {[%emt 0:03:14]} Be4 {[%emt 0:02:24]} 24. f3 {[%emt 0:01:39]} Bg6 {[%emt 0:03:16]} 25. Ke2 {[%emt 0:01:08]} Kf7 {[%emt 0:07:25]} 26. a3 {[%emt 0:03:24]} Ke6 {[%emt 0:01:18]} 27. b4 {[%emt 0:00:29]} Rc8 {[%emt 0:04:30]} 28. Rc1 {[%emt 0:01:09]} a5 {[%emt 0:02:22]} 29. Bxb6 {[%emt 0:03:24]} axb4 {[%emt 0:00:48]} 30. axb4 {[%emt 0:00:17]} Bxb4 {[%emt 0:00:04]} 31. Nd3 {[%emt 0:01:31]} Be7 {[%emt 0:01:51]} 32. Be3 {[%emt 0:05:37]} Ra8 {[%emt 0:08:53]} 33. Rb1 {[%emt 0:04:58]} Ra2+ {[%emt 0:01:21]} 34. Bd2 {[%emt 0:00:52]} Rc2 {[%emt 0:06:31]} 35. Rc1 {[%emt 0:05:58]} Rxc1 {[%emt 0:05:58]} 36. Bxc1 {[%emt 0:00:28]} Kd7 {[%emt 0:00:40]} 37. Kd2 {[%emt 0:03:19]} Kc6 {[%emt 0:01:28]} 38. Kc3 {[%emt 0:01:51]} Bf5 {[%emt 0:01:23]} 39. Nf2 {[%emt 0:01:24]} Bc5 {[%emt 0:01:29]} 40. Ne4 {[%emt 0:00:00]} Be7 {[%emt 0:00:00]} 41. g4 {[%emt 0:10:22]} Bg6 {[%emt 0:13:12]} 42. Ng3 {[%emt 0:02:00]} Bc5 {[%emt 0:02:25]} 43. Ne4 {[%emt 0:06:08]} Be7 {[%emt 0:01:06]} 44. Be3 {[%emt 0:00:08]} Bf7 {[%emt 0:00:58]} 45. Ng3 {[%emt 0:02:17]} Be6 {[%emt 0:01:39]} 46. h4 {[%emt 0:05:07]} g6 {[%emt 0:03:00]} 47. h5 {[%emt 0:02:17]} f5 {[%emt 0:00:57]} 48. hxg6 {[%emt 0:01:21]} hxg6 {[%emt 0:04:15]} 49. gxf5 {[%emt 0:01:30]} gxf5 {[%emt 0:00:14]} 50. Bg1 {[%emt 0:02:00]} Bh4 {[%emt 0:05:22]} 51. Bh2 {[%emt 0:03:07]} 1/2-1/2

[Event "Polish Youth G18 Championship 2023"]
[Site "Jastrzebia Gora"]
[Date "2023.03.17"]
[Round "7.17"]
[White "Olszewska, Wiktoria"]
[Black "Dallemura, Anna"]
[Result "1/2-1/2"]
[ECO "C78"]
[WhiteElo "1287"]
[BlackElo "1496"]
[Annotator "NA RC COMBH"]
[PlyCount "86"]
[EventDate "2023.03.11"]
[EventType "swiss"]
[EventCountry "POL"]
[SourceTitle "playchess.com"]
[Source "ChessBase"]
[SourceQuality "1"]
[TimeControl "40/5400+30:1800+30"]

1. e4 {[%emt 0:00:02]} e5 {[%emt 0:00:05]} 2. Nf3 {[%emt 0:00:11]} Nc6 {[%emt 0:00:06]} 3. Bb5 {[%emt 0:00:09]} a6 {[%emt 0:00:06]} 4. Ba4 {[%emt 0:00:10]} Nf6 {[%emt 0:00:07]} 5. O-O {[%emt 0:01:12]} b5 6. Bb3 Bc5 7. d3 d6 8. c3 Ba7 9. h3 h6 10. Re1 O-O 11. d4 Qe7 {[%emt 0:19:01]} 12. Bc2 {[%emt 0:28:06]} Re8 {[%emt 0:03:05]} 13. d5 {[%emt 0:13:50]} Nb8 {[%emt 0:02:07]} 14. Nbd2 {[%emt 0:02:49]} Nbd7 {[%emt 0:18:07]} 15. Nf1 {[%emt 0:03:38]} Nf8 {[%emt 0:06:29]} 16. Ne3 {[%emt 0:09:15]} g5 {[%emt 0:03:32]} 17. Nh2 {[%emt 0:04:08]} Ng6 {[%emt 0:04:02]} 18. Neg4 {[%emt 0:07:42]} Kg7 {[%emt 0:02:20]} 19. Qf3 {[%emt 0:04:58]} Nf4 {[%emt 0:12:49]} 20. Nxf6 {[%emt 0:01:41]} Qxf6 {[%emt 0:00:03]} 21. Be3 {[%emt 0:02:33]} Rh8 {[%emt 0:03:03]} 22. Bxf4 {[%emt 0:04:06]} gxf4 {[%emt 0:00:43]} 23. Kh1 {[%emt 0:05:01]} Qh4 {[%emt 0:07:57]} 24. Re2 {[%emt 0:05:14]} h5 {[%emt 0:05:57]} 25. Rg1 {[%emt 0:04:43]} Kf8 {[%emt 0:02:50]} 26. g3 {[%emt 0:02:21]} Qxh3 {[%emt 0:00:41]} 27. gxf4 {[%emt 0:01:05]} Qxf3+ {[%emt 0:00:23]} 28. Nxf3 {[%emt 0:00:04]} Bg4 {[%emt 0:00:15]} 29. Kg2 {[%emt 0:01:18]} Rg8 {[%emt 0:01:40]} 30. Rh1 {[%emt 0:00:33]} exf4 {[%emt 0:01:08]} 31. Rd2 {[%emt 0:00:33]} Re8 {[%emt 0:02:27]} 32. Nd4 {[%emt 0:00:35]} Bd1+ {[%emt 0:04:17]} 33. Kf1 {[%emt 0:00:21]} Bxc2 {[%emt 0:00:09]} 34. Nxc2 {[%emt 0:00:38]} Rxe4 {[%emt 0:00:51]} 35. Rxh5 {[%emt 0:00:23]} f3 {[%emt 0:02:20]} 36. Rh3 {[%emt 0:00:38]} a5 {[%emt 0:01:18]} 37. Rxf3 {[%emt 0:00:28]} Rg5 {[%emt 0:00:23]} 38. Ne3 {[%emt 0:00:28]} Bxe3 {[%emt 0:00:28]} 39. Rxe3 {[%emt 0:00:12]} Ree5 {[%emt 0:00:32]} 40. Red3 {[%emt 0:00:00]} Rgf5 {[%emt 0:00:00]} 41. Rd4 {[%emt 0:04:36]} Rh5 {[%emt 0:03:29]} 42. Kg2 {[%emt 0:04:06]} Ke7 {[%emt 0:01:46]} 43. b3 {[%emt 0:02:38]} Kd7 {[%emt 0:01:37]} 1/2-1/2

[Event "Polish Youth G18 Championship 2023"]
[Site "Jastrzebia Gora"]
[Date "2023.03.17"]
[Round "7.18"]
[White "Sivickis, Kornelia"]
[Black "Lopusiewicz, Marta"]
[Result "1/2-1/2"]
[ECO "A06"]
[WhiteElo "1328"]
[BlackElo "1180"]
[Annotator "NA RC COMBH"]
[PlyCount "119"]
[EventDate "2023.03.11"]
[EventType "swiss"]
[EventCountry "POL"]
[SourceTitle "playchess.com"]
[Source "ChessBase"]
[SourceQuality "1"]
[TimeControl "40/5400+30:1800+30"]

1. Nf3 {[%emt 0:00:01]} d5 {[%emt 0:00:07]} 2. c4 {[%emt 0:00:13]} e6 {[%emt 0:00:05]} 3. e3 {[%emt 0:00:14]} Nf6 {[%emt 0:00:51]} 4. Nc3 {[%emt 0:00:15]} Be7 {[%emt 0:00:30]} 5. Be2 {[%emt 0:00:21]} Nbd7 {[%emt 0:01:10]} 6. d4 {[%emt 0:00:09]} c6 {[%emt 0:00:52]} 7. a3 {[%emt 0:01:45]} a5 {[%emt 0:00:39]} 8. Qc2 {[%emt 0:01:09]} b6 {[%emt 0:03:43]} 9. Bd2 {[%emt 0:01:33]} Bb7 {[%emt 0:01:03]} 10. O-O {[%emt 0:01:06]} O-O {[%emt 0:01:08]} 11. e4 {[%emt 0:04:23]} dxe4 {[%emt 0:00:16]} 12. Nxe4 {[%emt 0:00:23]} c5 {[%emt 0:02:52]} 13. Ng3 {[%emt 0:02:11]} Qc7 {[%emt 0:03:23]} 14. Rfe1 {[%emt 0:02:31]} cxd4 {[%emt 0:08:50]} 15. Nxd4 {[%emt 0:00:35]} Ba6 {[%emt 0:03:43]} 16. Rac1 {[%emt 0:01:43]} Rac8 {[%emt 0:00:23]} 17. a4 {[%emt 0:02:42]} Bc5 {[%emt 0:05:46]} 18. Nb3 {[%emt 0:05:10]} Bb7 {[%emt 0:03:50]} 19. Bg5 {[%emt 0:04:47]} h6 {[%emt 0:00:38]} 20. Bxf6 {[%emt 0:00:18]} Nxf6 {[%emt 0:00:09]} 21. Nxc5 {[%emt 0:00:13]} Qxc5 {[%emt 0:00:20]} 22. Qc3 {[%emt 0:03:06]} Rfd8 {[%emt 0:04:33]} 23. Bf3 {[%emt 0:04:24]} Bxf3 {[%emt 0:00:21]} 24. Qxf3 {[%emt 0:00:11]} Qc6 {[%emt 0:00:57]} 25. Qxc6 {[%emt 0:03:39]} Rxc6 {[%emt 0:00:05]} 26. b3 {[%emt 0:00:17]} Rd3 {[%emt 0:04:19]} 27. Rb1 {[%emt 0:02:07]} Nd7 {[%emt 0:02:19]} 28. Ne4 {[%emt 0:03:19]} f5 {[%emt 0:05:21]} 29. Ng3 {[%emt 0:00:28]} Nc5 {[%emt 0:00:57]} 30. b4 {[%emt 0:13:10]} Nxa4 {[%emt 0:02:38]} 31. bxa5 {[%emt 0:01:28]} bxa5 32. Rb5 {[%emt 0:00:56]} Rxc4 {[%emt 0:06:50]} 33. Rxa5 {[%emt 0:00:29]} Rd6 {[%emt 0:00:40]} 34. h3 {[%emt 0:00:44]} Nc5 {[%emt 0:05:16]} 35. Ra8+ {[%emt 0:00:49]} Kf7 {[%emt 0:00:21]} 36. Rc8 {[%emt 0:00:30]} Nd3 {[%emt 0:07:15]} 37. Rxc4 {[%emt 0:02:49]} Nxe1 {[%emt 0:00:15]} 38. Rc1 {[%emt 0:00:27]} Nd3 {[%emt 0:00:11]} 39. Rd1 {[%emt 0:00:20]} Rd5 {[%emt 0:00:24]} 40. Kf1 {[%emt 0:00:00]} Nf4 {[%emt 0:00:00]} 41. Rxd5 {[%emt 0:01:45]} Nxd5 {[%emt 0:00:59]} 42. Ne2 {[%emt 0:00:20]} Kf6 {[%emt 0:00:58]} 43. g3 {[%emt 0:00:58]} g5 {[%emt 0:00:34]} 44. Ke1 {[%emt 0:01:02]} e5 {[%emt 0:03:00]} 45. Nc1 {[%emt 0:00:34]} h5 {[%emt 0:01:05]} 46. Nd3 {[%emt 0:00:59]} f4 {[%emt 0:05:34]} 47. Nc5 {[%emt 0:03:31]} Kf5 {[%emt 0:01:05]} 48. Ke2 {[%emt 0:02:05]} fxg3 {[%emt 0:00:18]} 49. fxg3 {[%emt 0:00:29]} e4 {[%emt 0:02:48]} 50. Kf2 {[%emt 0:02:52]} Nf6 {[%emt 0:04:21]} 51. Ke3 {[%emt 0:01:50]} g4 {[%emt 0:00:54]} 52. h4 {[%emt 0:05:26]} Ke5 {[%emt 0:00:33]} 53. Nb3 {[%emt 0:00:57]} Nd5+ {[%emt 0:00:32]} 54. Ke2 {[%emt 0:00:22]} Nb4 {[%emt 0:01:27]} 55. Kd2 {[%emt 0:01:50]} Nd3 {[%emt 0:07:12]} 56. Ke3 {[%emt 0:02:07]} Kf5 {[%emt 0:02:16]} 57. Nd2 Ke5 58. Nb3 Kf5 59. Nd4+ Ke5 60. Nb3 1/2-1/2

[Event "Polish Youth G18 Championship 2023"]
[Site "Jastrzebia Gora"]
[Date "2023.03.17"]
[Round "7.19"]
[White "Nagly, Malgorzata"]
[Black "Pietruszka, Julia"]
[Result "1-0"]
[ECO "C65"]
[WhiteElo "1041"]
[BlackElo "1151"]
[Annotator "NA RC COMBH"]
[PlyCount "31"]
[EventDate "2023.03.11"]
[EventType "swiss"]
[EventCountry "POL"]
[SourceTitle "playchess.com"]
[Source "ChessBase"]
[SourceQuality "1"]
[TimeControl "40/5400+30:1800+30"]

1. e4 {[%emt 0:01:00]} e5 {[%emt 0:00:04]} 2. Nf3 {[%emt 0:00:12]} Nc6 {[%emt 0:00:06]} 3. Bb5 {[%emt 0:00:06]} Nf6 {[%emt 0:00:20]} 4. O-O {[%emt 0:00:21]} Bc5 {[%emt 0:04:01]} 5. Nxe5 {[%emt 0:02:14]} Nxe5 {[%emt 0:05:42]} 6. d4 {[%emt 0:00:24]} Bb6 {[%emt 0:02:30]} 7. dxe5 {[%emt 0:02:43]} Nxe4 {[%emt 0:00:12]} 8. Qf3 {[%emt 0:03:02]} Ng5 {[%emt 0:03:00]} 9. Qg4 {[%emt 0:02:36]} Ne6 {[%emt 0:02:36]} 10. Nc3 {[%emt 0:06:41]} O-O {[%emt 0:02:42]} 11. Bd3 {[%emt 0:07:56]} g6 {[%emt 0:02:14]} 12. Nd5 {[%emt 0:02:46]} d6 {[%emt 0:08:04]} 13. Nf6+ {[%emt 0:07:44]} Kh8 {[%emt 0:00:15]} 14. Qh4 {[%emt 0:05:47]} h5 {[%emt 0:01:39]} 15. g4 {[%emt 0:05:20]} Ng7 {[%emt 0:07:29]} 16. Qg5 {[%emt 0:03:25]} 1-0

[Event "Polish Youth G18 Championship 2023"]
[Site "Jastrzebia Gora"]
[Date "2023.03.17"]
[Round "7.20"]
[White "Bauer, Marika"]
[Black "Tittor, Weronika"]
[Result "1/2-1/2"]
[ECO "B28"]
[WhiteElo "1183"]
[BlackElo "1226"]
[Annotator "NA RC COMBH"]
[PlyCount "60"]
[EventDate "2023.03.11"]
[EventType "swiss"]
[EventCountry "POL"]
[SourceTitle "playchess.com"]
[Source "ChessBase"]
[SourceQuality "1"]
[TimeControl "40/5400+30:1800+30"]

1. e4 {[%emt 0:00:03]} c5 {[%emt 0:00:39]} 2. Nf3 {[%emt 0:00:05]} a6 {[%emt 0:00:06]} 3. d4 {[%emt 0:00:32]} cxd4 {[%emt 0:02:23]} 4. Nxd4 {[%emt 0:00:27]} Nf6 {[%emt 0:02:27]} 5. Nc3 {[%emt 0:00:55]} e5 {[%emt 0:02:31]} 6. Nb3 {[%emt 0:01:41]} Bb4 {[%emt 0:02:30]} 7. Bd2 {[%emt 0:04:45]} Nc6 {[%emt 0:03:29]} 8. Bd3 {[%emt 0:03:03]} d5 {[%emt 0:02:29]} 9. Nxd5 {[%emt 0:06:08]} Bxd2+ {[%emt 0:02:31]} 10. Qxd2 {[%emt 0:00:34]} Nxd5 {[%emt 0:00:43]} 11. exd5 {[%emt 0:00:10]} Qxd5 {[%emt 0:00:42]} 12. O-O {[%emt 0:00:47]} Be6 {[%emt 0:02:11]} 13. Rfe1 {[%emt 0:01:31]} O-O {[%emt 0:02:36]} 14. Be4 {[%emt 0:02:17]} Qxd2 {[%emt 0:02:20]} 15. Nxd2 {[%emt 0:00:11]} Rfd8 {[%emt 0:05:16]} 16. Nf3 {[%emt 0:04:58]} Bd5 {[%emt 0:02:41]} 17. Bxd5 {[%emt 0:06:53]} Rxd5 {[%emt 0:00:12]} 18. Rad1 {[%emt 0:01:09]} Rad8 {[%emt 0:00:45]} 19. Rxd5 {[%emt 0:00:50]} Rxd5 {[%emt 0:00:08]} 20. c3 {[%emt 0:02:54]} f6 {[%emt 0:01:54]} 21. g3 {[%emt 0:03:00]} Rd3 {[%emt 0:01:52]} 22. Kg2 {[%emt 0:02:11]} Kf7 {[%emt 0:02:35]} 23. Re2 {[%emt 0:04:33]} b5 {[%emt 0:03:04]} 24. Rd2 {[%emt 0:00:36]} Rxd2 {[%emt 0:00:39]} 25. Nxd2 {[%emt 0:00:04]} Ke6 {[%emt 0:00:15]} 26. Kf3 {[%emt 0:00:33]} Kd5 {[%emt 0:00:18]} 27. Ke3 {[%emt 0:00:28]} a5 {[%emt 0:00:37]} 28. b3 {[%emt 0:03:08]} g6 {[%emt 0:02:34]} 29. f3 {[%emt 0:01:52]} f5 {[%emt 0:02:32]} 30. h4 {[%emt 0:01:43]} h5 {[%emt 0:00:11]} 1/2-1/2